[Event "Charlotte Open 2020"]
[Site "Charlotte"]
[Date "2020.01.02"]
[Round "2.3"]
[White "Chandra, Akshat"]
[Black "Talukdar, Rohan"]
[Result "1-0"]
[ECO "A49"]
[WhiteElo "2524"]
[BlackElo "2343"]
[Annotator "RC"]
[PlyCount "97"]
[EventDate "2020.01.02"]
[EventType "swiss"]
[EventCountry "USA"]
[SourceTitle "playchess.com"]
[Source "ChessBase"]
[SourceQuality "1"]
[TimeControl "6000+30"]

1. Nf3 {[%emt 0:01:58]} Nf6 {[%emt 0:00:02]} 2. g3 {[%emt 0:00:03]} g6 {[%emt 0:00:37]} 3. b3 {[%emt 0:01:01]} Bg7 {[%emt 0:01:34]} 4. Bb2 {[%emt 0:00:06]} O-O {[%emt 0:01:22]} 5. Bg2 {[%emt 0:00:03]} d6 {[%emt 0:06:02]} 6. d4 {[%emt 0:00:08]} e5 {[%emt 0:00:11]} 7. dxe5 {[%emt 0:00:12]} Nfd7 {[%emt 0:00:09]} 8. O-O {[%emt 0:09:10]} dxe5 {[%emt 0:01:21]} 9. e4 {[%emt 0:01:59]} Na6 {[%emt 0:09:24]} 10. Qe2 {[%emt 0:03:10]} Qe7 {[%emt 0:07:48]} 11. Ba3 {[%emt 0:10:13]} Ndc5 {[%emt 0:11:22]} 12. Nc3 {[%emt 0:07:26]} c6 {[%emt 0:07:01]} 13. Na4 {[%emt 0:01:48]} Re8 {[%emt 0:05:50]} 14. Ne1 {[%emt 0:02:40]} Bf8 {[%emt 0:05:59]} 15. Nd3 {[%emt 0:00:29]} b6 {[%emt 0:00:07]} 16. Qe3 {[%emt 0:05:16]} Bb7 {[%emt 0:00:56]} 17. Rfd1 {[%emt 1:02:48]} Rad8 {[%emt 0:02:12]} 18. Rd2 {[%emt 0:00:00]} Qd7 {[%emt 0:06:59]} 19. Naxc5 {[%emt 0:00:00]} Nxc5 {[%emt 0:00:22]} 20. Rad1 {[%emt 0:00:00]} Nxd3 {[%emt 0:01:25]} 21. Rxd3 {[%emt 0:00:00]} Qc7 {[%emt 0:01:07]} 22. Bxf8 {[%emt 0:00:00]} Rxf8 {[%emt 0:00:39]} 23. Bh3 {[%emt 0:00:00]} Bc8 {[%emt 0:15:11]} 24. Bxc8 {[%emt 0:00:00]} Qxc8 {[%emt 0:00:08]} 25. Qg5 {[%emt 0:00:00]} f6 {[%emt 0:03:42]} 26. Qd2 {[%emt 0:00:00]} Rxd3 {[%emt 0:00:08]} 27. Qxd3 {[%emt 0:00:00]} Kg7 {[%emt 0:00:37]} 28. Qc4 {[%emt 0:00:00]} c5 {[%emt 0:01:20]} 29. Rd5 {[%emt 0:00:00]} Qh3 {[%emt 0:03:31]} 30. Qa4 {[%emt 0:00:00]} Rf7 {[%emt 0:08:20]} 31. Qe8 {[%emt 0:00:00]} g5 {[%emt 0:00:03]} 32. Rd8 {[%emt 0:02:22]} Qh5 {[%emt 0:00:07]} 33. h3 {[%emt 0:03:17]} Qg6 {[%emt 0:00:52]} 34. f3 {[%emt 0:00:15]} Kh6 {[%emt 0:01:01]} 35. Qe6 {[%emt 0:01:05]} Qg7 {[%emt 0:02:23]} 36. Rd6 {[%emt 0:01:49]} Qg6 {[%emt 0:01:27]} 37. a4 {[%emt 0:00:38]} Kg7 {[%emt 0:00:31]} 38. Kg2 {[%emt 0:00:29]} Rc7 {[%emt 0:00:42]} 39. Qd5 {[%emt 0:00:29]} c4 {[%emt 0:03:28]} 40. b4 {[%emt 0:00:07]} Qf7 {[%emt 0:00:08]} 41. c3 {[%emt 0:00:31]} Qe8 {[%emt 0:01:35]} 42. b5 {[%emt 0:00:22]} Qe7 {[%emt 0:00:18]} 43. g4 {[%emt 0:01:02]} Rc5 {[%emt 0:00:47]} 44. Rd7 {[%emt 0:00:21]} Rxd5 {[%emt 0:00:08]} 45. Rxe7+ {[%emt 0:00:01]} Kf8 {[%emt 0:00:05]} 46. Rxa7 {[%emt 0:00:08]} Rd3 {[%emt 0:00:41]} 47. a5 {[%emt 0:00:31]} Rd6 {[%emt 0:01:23]} 48. a6 {[%emt 0:00:18]} Rd2+ {[%emt 0:00:16]} 49. Kg3 {[%emt 0:00:39]} 1-0

[Event "Charlotte Open 2020"]
[Site "Charlotte"]
[Date "2020.01.02"]
[Round "2.10"]
[White "Wang, Tianqi"]
[Black "Hilby, Craig"]
[Result "0-1"]
[ECO "A13"]
[WhiteElo "2314"]
[BlackElo "2434"]
[Annotator "ChessBase"]
[PlyCount "84"]
[EventDate "2020.01.02"]
[EventType "swiss"]
[EventCountry "USA"]
[SourceTitle "playchess.com"]
[Source "ChessBase"]
[SourceQuality "1"]
[TimeControl "6000+30"]

1. Nf3 {[%emt 0:11:19]} g6 {[%emt 0:00:41]} 2. c4 {[%emt 0:00:12]} Bg7 {[%emt 0:00:04]} 3. d4 {[%emt 0:00:32]} e6 {[%emt 0:00:13]} 4. g3 {[%emt 0:00:07]} Ne7 {[%emt 0:00:05]} 5. Bg2 {[%emt 0:00:03]} d5 {[%emt 0:00:14]} 6. O-O {[%emt 0:01:02]} O-O {[%emt 0:00:04]} 7. Nc3 {[%emt 0:01:22]} Nbc6 {[%emt 0:01:42]} 8. cxd5 {[%emt 0:08:13]} exd5 {[%emt 0:00:37]} 9. e3 {[%emt 0:00:31]} Nf5 {[%emt 0:01:04]} 10. Ne1 {[%emt 0:00:36]} Nce7 {[%emt 0:00:39]} 11. Nd3 {[%emt 0:01:30]} c6 {[%emt 0:00:15]} 12. b3 {[%emt 0:03:09]} h5 {[%emt 0:10:32]} 13. h3 {[%emt 0:01:14]} Nd6 {[%emt 0:03:17]} 14. Ba3 {[%emt 0:01:51]} Re8 {[%emt 0:02:20]} 15. Qd2 {[%emt 0:04:31]} Nef5 {[%emt 0:07:32]} 16. Ne5 {[%emt 0:06:46]} Bh6 {[%emt 0:05:01]} 17. Qd3 {[%emt 0:04:35]} Kg7 {[%emt 0:01:26]} 18. Rfe1 {[%emt 0:06:49]} f6 {[%emt 0:08:49]} 19. Bxd6 {[%emt 0:06:15]} Qxd6 {[%emt 0:00:39]} 20. Nxg6 {[%emt 0:00:15]} Kxg6 {[%emt 0:17:14]} 21. g4 {[%emt 0:00:48]} hxg4 {[%emt 0:00:09]} 22. hxg4 {[%emt 0:00:05]} Rg8 {[%emt 0:00:13]} 23. gxf5+ {[%emt 0:16:07]} Bxf5 {[%emt 0:05:43]} 24. e4 {[%emt 0:00:18]} dxe4 {[%emt 0:00:10]} 25. Bxe4 {[%emt 0:00:12]} Kf7+ {[%emt 0:02:25]} 26. Kf1 {[%emt 0:00:11]} Bg4 {[%emt 0:00:48]} 27. Bg2 {[%emt 0:00:53]} Qh2 {[%emt 0:07:13]} 28. Qc4+ {[%emt 0:09:36]} Kg7 {[%emt 0:00:20]} 29. Re7+ {[%emt 0:25:28]} Kh8 {[%emt 0:00:27]} 30. Qd3 {[%emt 0:00:00]} f5 {[%emt 0:08:26]} 31. Rae1 {[%emt 0:00:00]} Rab8 {[%emt 0:12:43]} 32. d5 {[%emt 0:00:00]} Bf8 {[%emt 0:02:49]} 33. Qd4+ {[%emt 0:00:00]} Bg7 {[%emt 0:00:07]} 34. Qd3 {[%emt 0:00:00]} Bf6 {[%emt 0:01:04]} 35. R7e6 {[%emt 0:00:00]} Bh5 {[%emt 0:04:12]} 36. Qh3 {[%emt 0:01:37]} Qxh3 {[%emt 0:00:08]} 37. Bxh3 {[%emt 0:00:01]} Bxc3 {[%emt 0:00:10]} 38. R1e3 {[%emt 0:00:47]} Bg7 {[%emt 0:00:09]} 39. Bxf5 {[%emt 0:00:15]} Rgf8 {[%emt 0:00:04]} 40. Bd3 {[%emt 0:00:19]} Bf3 {[%emt 0:04:25]} 41. dxc6 {[%emt 0:01:16]} bxc6 {[%emt 0:00:07]} 42. Re7 {[%emt 0:00:52]} a5 {[%emt 0:02:24]} 0-1

[Event "Charlotte Open 2020"]
[Site "Charlotte"]
[Date "2020.01.02"]
[Round "2.11"]
[White "Petesch, Gabriel"]
[Black "Korley, Kassa"]
[Result "1/2-1/2"]
[ECO "E67"]
[WhiteElo "2302"]
[BlackElo "2432"]
[Annotator "ChessBase"]
[PlyCount "134"]
[EventDate "2020.01.02"]
[EventType "swiss"]
[EventCountry "USA"]
[SourceTitle "playchess.com"]
[Source "ChessBase"]
[SourceQuality "1"]
[TimeControl "6000+30"]

1. d4 {[%emt 1:40:30]} g6 {[%emt 1:40:30]} 2. Nf3 {[%emt 0:00:30]} Bg7 {[%emt 0:00:30]} 3. g3 {[%emt 0:00:30]} d6 {[%emt 0:00:30]} 4. Bg2 {[%emt 0:00:30]} Nf6 {[%emt 0:00:30]} 5. O-O {[%emt 0:00:30]} O-O {[%emt 0:00:30]} 6. c4 {[%emt 0:00:30]} Nbd7 {[%emt 0:00:30]} 7. Nc3 {[%emt 0:00:30]} e5 {[%emt 0:00:30]} 8. Qc2 {[%emt 0:00:30]} exd4 {[%emt 0:00:30]} 9. Nxd4 {[%emt 0:00:30]} Re8 {[%emt 0:00:30]} 10. b3 {[%emt 0:00:30]} Nc5 {[%emt 0:00:30]} 11. Bb2 {[%emt 0:00:30]} h5 {[%emt 0:00:30]} 12. Rad1 {[%emt 0:00:30]} a5 {[%emt 0:00:30]} 13. Nd5 {[%emt 0:00:30]} c6 {[%emt 0:00:30]} 14. Nxf6+ {[%emt 0:00:30]} Qxf6 {[%emt 0:00:30]} 15. Bc3 {[%emt 0:00:30]} Qe7 {[%emt 0:00:30]} 16. Rfe1 {[%emt 0:00:30]} h4 {[%emt 0:00:30]} 17. Nf3 {[%emt 0:00:30]} hxg3 {[%emt 0:00:30]} 18. hxg3 {[%emt 0:00:30]} Bf5 {[%emt 0:00:30]} 19. Qb2 {[%emt 0:00:30]} Bxc3 {[%emt 0:00:30]} 20. Qxc3 {[%emt 0:00:30]} a4 {[%emt 0:00:30]} 21. Nh4 {[%emt 0:00:30]} axb3 {[%emt 0:00:30]} 22. Nxf5 {[%emt 0:00:30]} gxf5 {[%emt 0:00:30]} 23. axb3 {[%emt 0:00:30]} Ra3 {[%emt 0:00:30]} 24. Qc2 {[%emt 0:00:30]} Qe5 {[%emt 0:00:30]} 25. Rb1 {[%emt 0:00:30]} f4 {[%emt 0:00:30]} 26. gxf4 {[%emt 0:00:30]} Qxf4 {[%emt 0:00:30]} 27. e3 {[%emt 0:00:30]} Qe5 {[%emt 0:00:30]} 28. Red1 {[%emt 0:00:30]} Rea8 {[%emt 0:00:30]} 29. Rd4 {[%emt 0:00:30]} Ra1 {[%emt 0:00:30]} 30. Qd1 {[%emt 0:00:30]} Rxb1 {[%emt 0:00:30]} 31. Qxb1 {[%emt 0:00:30]} Kf8 {[%emt 0:00:30]} 32. b4 {[%emt 0:00:30]} Ne6 {[%emt 0:00:30]} 33. Rd1 {[%emt 0:00:30]} Ke7 {[%emt 0:00:30]} 34. b5 {[%emt 0:00:30]} cxb5 {[%emt 0:00:30]} 35. Qxb5 {[%emt 0:00:30]} Qxb5 {[%emt 0:00:30]} 36. cxb5 {[%emt 0:00:30]} Nc5 {[%emt 0:00:30]} 37. Rd4 {[%emt 0:00:30]} Ra1+ {[%emt 0:00:30]} 38. Bf1 {[%emt 0:00:30]} Rb1 {[%emt 0:00:30]} 39. Kg2 {[%emt 0:00:30]} Rb2 {[%emt 0:00:30]} 40. Kg3 {[%emt 0:00:30]} Ne6 {[%emt 0:00:30]} 41. Rd5 {[%emt 0:00:30]} Rb4 {[%emt 0:00:30]} 42. Rf5 {[%emt 0:00:30]} Nc5 {[%emt 0:00:30]} 43. f3 {[%emt 0:00:30]} Ne6 {[%emt 0:00:30]} 44. e4 {[%emt 0:00:30]} b6 {[%emt 0:00:30]} 45. Rh5 {[%emt 0:00:30]} Nd4 {[%emt 0:00:30]} 46. Rd5 {[%emt 0:00:30]} Ne6 {[%emt 0:00:30]} 47. e5 {[%emt 0:00:30]} dxe5 {[%emt 0:00:30]} 48. Rxe5 {[%emt 0:00:30]} Kf6 {[%emt 0:00:30]} 49. Rh5 {[%emt 0:00:30]} Rd4 {[%emt 0:00:30]} 50. Rh8 {[%emt 0:00:30]} Rd6 {[%emt 0:00:30]} 51. Bc4 {[%emt 0:00:30]} Rd4 {[%emt 0:00:30]} 52. Bxe6 {[%emt 0:00:30]} Kxe6 {[%emt 0:00:30]} 53. Rb8 {[%emt 0:00:30]} Rd6 {[%emt 0:00:30]} 54. Rb7 {[%emt 0:00:30]} f6 {[%emt 0:00:30]} 55. Kf4 {[%emt 0:00:30]} Rd4+ {[%emt 0:00:30]} 56. Ke3 {[%emt 0:00:30]} Rd6 {[%emt 0:00:30]} 57. Ke4 {[%emt 0:00:30]} f5+ {[%emt 0:00:30]} 58. Kf4 {[%emt 0:00:30]} Kf6 {[%emt 0:00:30]} 59. Rh7 {[%emt 0:00:30]} Rd4+ {[%emt 0:00:30]} 60. Ke3 {[%emt 0:00:30]} Rb4 {[%emt 0:00:30]} 61. Rh6+ {[%emt 0:00:30]} Ke5 {[%emt 0:00:30]} 62. Rxb6 {[%emt 0:00:30]} Rb3+ {[%emt 0:00:30]} 63. Ke2 {[%emt 0:00:30]} Kf4 {[%emt 0:00:30]} 64. Rb8 {[%emt 0:00:30]} Rxf3 {[%emt 0:00:30]} 65. b6 {[%emt 0:00:30]} Rb3 {[%emt 0:00:30]} 66. b7 {[%emt 0:00:30]} Rb1 {[%emt 0:00:30]} 67. Kd3 {[%emt 0:00:30]} Rb6 {[%emt 0:00:30] Ke4 Ke5+} 1/2-1/2

[Event "Charlotte Open 2020"]
[Site "Charlotte"]
[Date "2020.01.02"]
[Round "2.12"]
[White "Puckett, Matthew"]
[Black "Song, Edward"]
[Result "1/2-1/2"]
[ECO "E01"]
[WhiteElo "2148"]
[BlackElo "2411"]
[Annotator "ChessBase"]
[PlyCount "59"]
[EventDate "2020.01.02"]
[EventType "swiss"]
[EventCountry "USA"]
[SourceTitle "playchess.com"]
[Source "ChessBase"]
[SourceQuality "1"]
[TimeControl "6000+30"]

1. d4 {[%emt 1:40:30]} d5 {[%emt 1:40:30]} 2. c4 {[%emt 0:00:30]} e6 {[%emt 0:00:30]} 3. Nf3 {[%emt 0:00:30]} Nf6 {[%emt 0:00:30]} 4. g3 {[%emt 0:00:30]} Bb4+ {[%emt 0:00:30]} 5. Bd2 {[%emt 0:00:30]} Bd6 {[%emt 0:00:30]} 6. Nc3 {[%emt 0:00:30]} O-O {[%emt 0:00:30]} 7. Bg5 {[%emt 0:00:30]} c6 {[%emt 0:00:30]} 8. e4 {[%emt 0:00:30]} dxe4 {[%emt 0:00:30]} 9. Nxe4 {[%emt 0:00:30]} Bb4+ {[%emt 0:00:30]} 10. Nc3 {[%emt 0:00:30]} e5 {[%emt 0:00:30]} 11. dxe5 {[%emt 0:00:30]} Qxd1+ {[%emt 0:00:30]} 12. Rxd1 {[%emt 0:00:30]} Ne4 {[%emt 0:00:30]} 13. Bd2 {[%emt 0:00:30]} Nxd2 {[%emt 0:00:30]} 14. Rxd2 {[%emt 0:00:30]} Nd7 {[%emt 0:00:30]} 15. Be2 {[%emt 0:00:30]} Nb6 {[%emt 0:00:30]} 16. O-O {[%emt 0:00:30]} Be6 {[%emt 0:00:30]} 17. Rd4 {[%emt 0:00:30]} Rfd8 {[%emt 0:00:30]} 18. Rfd1 {[%emt 0:00:30]} Rxd4 {[%emt 0:00:30]} 19. Rxd4 {[%emt 0:00:30]} c5 {[%emt 0:00:30]} 20. Rd6 {[%emt 0:00:30]} Bxc3 {[%emt 0:00:30]} 21. bxc3 {[%emt 0:00:30]} Bxc4 {[%emt 0:00:30]} 22. Bxc4 {[%emt 0:00:30]} Nxc4 {[%emt 0:00:30]} 23. Rd5 {[%emt 0:00:30]} b6 {[%emt 0:00:30]} 24. Nd2 {[%emt 0:00:30]} Nxd2 {[%emt 0:00:30]} 25. Rxd2 {[%emt 0:00:30]} f6 {[%emt 0:00:30]} 26. exf6 {[%emt 0:00:30]} gxf6 {[%emt 0:00:30]} 27. Rd7 {[%emt 0:00:30]} b5 {[%emt 0:00:30]} 28. Rc7 {[%emt 0:00:30]} c4 {[%emt 0:00:30]} 29. Rb7 {[%emt 0:00:30]} a6 {[%emt 0:00:30]} 30. Rb6 {[%emt 0:00:30]} 1/2-1/2

[Event "Charlotte Open 2020"]
[Site "Charlotte"]
[Date "2020.01.02"]
[Round "2.13"]
[White "Iotov, Valentin"]
[Black "Zeng, Sheena"]
[Result "1-0"]
[ECO "D36"]
[WhiteElo "2516"]
[BlackElo "1987"]
[Annotator "ChessBase"]
[PlyCount "67"]
[EventDate "2020.01.02"]
[EventType "swiss"]
[EventCountry "USA"]
[SourceTitle "playchess.com"]
[Source "ChessBase"]
[SourceQuality "1"]
[TimeControl "6000+30"]

1. c4 {[%emt 1:40:30]} e6 {[%emt 1:40:30]} 2. Nc3 {[%emt 0:00:30]} d5 {[%emt 0:00:30]} 3. d4 {[%emt 0:00:30]} Nf6 {[%emt 0:00:30]} 4. cxd5 {[%emt 0:00:30]} exd5 {[%emt 0:00:30]} 5. Bg5 {[%emt 0:00:30]} Be7 {[%emt 0:00:30]} 6. e3 {[%emt 0:00:30]} c6 {[%emt 0:00:30]} 7. Bd3 {[%emt 0:00:30]} Nbd7 {[%emt 0:00:30]} 8. Qc2 {[%emt 0:00:30]} O-O {[%emt 0:00:30]} 9. Nf3 {[%emt 0:00:30]} Re8 {[%emt 0:00:30]} 10. O-O {[%emt 0:00:30]} Nf8 {[%emt 0:00:30]} 11. h3 {[%emt 0:00:30]} Ng6 {[%emt 0:00:30]} 12. Bxf6 {[%emt 0:00:30]} Bxf6 {[%emt 0:00:30]} 13. b4 {[%emt 0:00:30]} a6 {[%emt 0:00:30]} 14. a4 {[%emt 0:00:30]} Be6 {[%emt 0:00:30]} 15. b5 {[%emt 0:00:30]} axb5 {[%emt 0:00:30]} 16. axb5 {[%emt 0:00:30]} Qe7 {[%emt 0:00:30]} 17. bxc6 {[%emt 0:00:30]} bxc6 {[%emt 0:00:30]} 18. Na4 {[%emt 0:00:30]} Rac8 {[%emt 0:00:30]} 19. Nc5 {[%emt 0:00:30]} Nf8 {[%emt 0:00:30]} 20. Ra6 {[%emt 0:00:30]} Rc7 {[%emt 0:00:30]} 21. Nxe6 {[%emt 0:00:30]} Qxe6 {[%emt 0:00:30]} 22. Rc1 {[%emt 0:00:30]} g6 {[%emt 0:00:30]} 23. Rxc6 {[%emt 0:00:30]} Rxc6 {[%emt 0:00:30]} 24. Qxc6 {[%emt 0:00:30]} Qxc6 {[%emt 0:00:30]} 25. Rxc6 {[%emt 0:00:30]} Re6 {[%emt 0:00:30]} 26. Bb5 {[%emt 0:00:30]} Bd8 {[%emt 0:00:30]} 27. Ne5 {[%emt 0:00:30]} f6 {[%emt 0:00:30]} 28. Nd3 {[%emt 0:00:30]} Be7 {[%emt 0:00:30]} 29. Nf4 {[%emt 0:00:30]} Rd6 {[%emt 0:00:30]} 30. Nxd5 {[%emt 0:00:30]} Kf7 {[%emt 0:00:30]} 31. Rc7 {[%emt 0:00:30]} Re6 {[%emt 0:00:30]} 32. Bc4 {[%emt 0:00:30]} Ke8 {[%emt 0:00:30]} 33. Nxe7 {[%emt 0:00:30]} Rxe7 {[%emt 0:00:30]} 34. Rc8+ {[%emt 0:00:30]} 1-0

[Event "Charlotte Open 2020"]
[Site "Charlotte"]
[Date "2020.01.02"]
[Round "2.16"]
[White "Escalante Ramirez, Brian Sebasti"]
[Black "Polgar-Shutzman, Tom"]
[Result "1-0"]
[ECO "A03"]
[WhiteElo "2421"]
[BlackElo "2233"]
[Annotator "ChessBase"]
[PlyCount "105"]
[EventDate "2020.01.02"]
[EventType "swiss"]
[EventCountry "USA"]
[SourceTitle "playchess.com"]
[Source "ChessBase"]
[SourceQuality "1"]
[TimeControl "6000+30"]

1. f4 {[%emt 1:40:30]} d5 {[%emt 1:40:30]} 2. Nf3 {[%emt 0:00:30]} Nf6 {[%emt 0:00:30]} 3. g3 {[%emt 0:00:30]} g6 {[%emt 0:00:30]} 4. Bg2 {[%emt 0:00:30]} Bg7 {[%emt 0:00:30]} 5. O-O {[%emt 0:00:30]} O-O {[%emt 0:00:30]} 6. d3 {[%emt 0:00:30]} c5 {[%emt 0:00:30]} 7. Qe1 {[%emt 0:00:30]} Nc6 {[%emt 0:00:30]} 8. e4 {[%emt 0:00:30]} dxe4 {[%emt 0:00:30]} 9. dxe4 {[%emt 0:00:30]} e5 {[%emt 0:00:30]} 10. f5 {[%emt 0:00:30]} Nd4 {[%emt 0:00:30]} 11. Nxd4 {[%emt 0:00:30]} exd4 {[%emt 0:00:30]} 12. e5 {[%emt 0:00:30]} Re8 {[%emt 0:00:30]} 13. fxg6 {[%emt 0:00:30]} hxg6 {[%emt 0:00:30]} 14. Bg5 {[%emt 0:00:30]} d3 {[%emt 0:00:30]} 15. Qf2 {[%emt 0:00:30]} Rxe5 {[%emt 0:00:30]} 16. Bxf6 {[%emt 0:00:30]} Bxf6 {[%emt 0:00:30]} 17. Qxf6 {[%emt 0:00:30]} Qxf6 {[%emt 0:00:30]} 18. Rxf6 dxc2 {[%emt 0:00:30]} 19. Nc3 {[%emt 0:01:00]} Bf5 {[%emt 0:00:30]} 20. Rc1 {[%emt 0:00:30]} Rae8 {[%emt 0:00:30]} 21. Rxf5 {[%emt 0:00:30]} Rxf5 {[%emt 0:00:30]} 22. Bxb7 {[%emt 0:00:30]} Rb8 {[%emt 0:00:30]} 23. Be4 {[%emt 0:00:30]} Re5 {[%emt 0:00:30]} 24. Rxc2 {[%emt 0:00:30]} Rb4 {[%emt 0:00:30]} 25. Bf3 {[%emt 0:00:30]} Kg7 {[%emt 0:00:30]} 26. Kf2 {[%emt 0:00:30]} Rc4 {[%emt 0:00:30]} 27. b3 {[%emt 0:00:30]} Rd4 {[%emt 0:00:30]} 28. Na4 {[%emt 0:00:30]} c4 {[%emt 0:00:30]} 29. bxc4 {[%emt 0:00:30]} Ra5 {[%emt 0:00:30]} 30. Ke3 {[%emt 0:00:30]} Rd7 {[%emt 0:00:30]} 31. Nc3 {[%emt 0:00:30]} Re5+ {[%emt 0:00:30]} 32. Kf2 {[%emt 0:00:30]} Rd3 {[%emt 0:00:30]} 33. Be2 {[%emt 0:00:30]} Rf5+ {[%emt 0:00:30]} 34. Ke1 {[%emt 0:00:30]} Re3 {[%emt 0:00:30]} 35. Nb5 {[%emt 0:00:30]} Re7 {[%emt 0:00:30]} 36. c5 {[%emt 0:00:30]} a6 {[%emt 0:00:30]} 37. c6 {[%emt 0:00:30]} Rxb5 {[%emt 0:00:30]} 38. c7 {[%emt 0:00:30]} Rb1+ {[%emt 0:00:30]} 39. Kd2 {[%emt 0:00:30]} Rd7+ {[%emt 0:00:30]} 40. Bd3 {[%emt 0:00:30]} Rxc7 {[%emt 0:00:30]} 41. Rxc7 {[%emt 0:00:30]} Rh1 {[%emt 0:00:30]} 42. h4 {[%emt 0:00:30]} Rg1 {[%emt 0:00:30]} 43. Bxa6 {[%emt 0:00:30]} Rxg3 {[%emt 0:00:30]} 44. Bc4 {[%emt 0:00:30]} Rg4 {[%emt 0:00:30]} 45. Rxf7+ {[%emt 0:00:30]} Kh6 {[%emt 0:00:30]} 46. Kc3 {[%emt 0:00:30]} Rxh4 {[%emt 0:00:30]} 47. a4 {[%emt 0:00:30]} Rh1 {[%emt 0:00:30]} 48. Rf1 {[%emt 0:00:30]} Rh5 {[%emt 0:00:30]} 49. Kb4 {[%emt 0:00:30]} g5 {[%emt 0:00:30]} 50. a5 {[%emt 0:00:30]} g4 {[%emt 0:00:30]} 51. a6 {[%emt 0:00:30]} Kg5 {[%emt 0:00:30]} 52. a7 {[%emt 0:00:30]} Rh8 {[%emt 0:00:30]} 53. Bd5 {[%emt 0:00:30]} 1-0

[Event "Charlotte Open 2020"]
[Site "Charlotte"]
[Date "2020.01.02"]
[Round "2.17"]
[White "Tsolakidou, Stavroula"]
[Black "Venkat, Raghav"]
[Result "1/2-1/2"]
[ECO "D37"]
[WhiteElo "2403"]
[BlackElo "2141"]
[Annotator "ChessBase"]
[PlyCount "83"]
[EventDate "2020.01.02"]
[EventType "swiss"]
[EventCountry "USA"]
[SourceTitle "playchess.com"]
[Source "ChessBase"]
[SourceQuality "1"]
[TimeControl "6000+30"]

1. d4 {[%emt 1:40:30]} Nf6 {[%emt 1:40:30]} 2. Nf3 {[%emt 0:00:30]} e6 {[%emt 0:00:30]} 3. c4 {[%emt 0:00:30]} d5 {[%emt 0:00:30]} 4. Nc3 {[%emt 0:00:30]} Be7 {[%emt 0:00:30]} 5. Bf4 {[%emt 0:00:30]} O-O {[%emt 0:00:30]} 6. e3 {[%emt 0:00:30]} dxc4 {[%emt 0:00:30]} 7. Bxc4 {[%emt 0:00:30]} a6 {[%emt 0:00:30]} 8. O-O {[%emt 0:00:30]} b5 {[%emt 0:00:30]} 9. Bd3 {[%emt 0:00:30]} Bb7 {[%emt 0:00:30]} 10. Qe2 {[%emt 0:00:30]} Nbd7 {[%emt 0:00:30]} 11. Rfd1 {[%emt 0:00:30]} c5 {[%emt 0:00:30]} 12. dxc5 {[%emt 0:00:30]} b4 {[%emt 0:00:30]} 13. Na4 {[%emt 0:00:30]} Qa5 {[%emt 0:00:30]} 14. Nb6 {[%emt 0:00:30]} Nxb6 {[%emt 0:00:30]} 15. cxb6 {[%emt 0:00:30]} Qxb6 {[%emt 0:00:30]} 16. e4 {[%emt 0:00:30]} Rfd8 {[%emt 0:00:30]} 17. Rac1 {[%emt 0:00:30]} Rac8 {[%emt 0:00:30]} 18. Ne5 {[%emt 0:00:30]} Qd4 {[%emt 0:00:30]} 19. Rxc8 {[%emt 0:00:30]} Rxc8 {[%emt 0:00:30]} 20. Bb1 {[%emt 0:00:30]} Qc5 {[%emt 0:00:30]} 21. Nd3 {[%emt 0:00:30]} Qh5 {[%emt 0:00:30]} 22. f3 {[%emt 0:00:30]} Bxe4 {[%emt 0:00:30]} 23. g4 {[%emt 0:00:30]} Bxd3 {[%emt 0:00:30]} 24. Bxd3 {[%emt 0:00:30]} Qc5+ {[%emt 0:00:30]} 25. Be3 {[%emt 0:00:30]} Qxe3+ {[%emt 0:00:30]} 26. Qxe3 {[%emt 0:00:30]} Bc5 {[%emt 0:00:30]} 27. Qxc5 {[%emt 0:00:30]} Rxc5 {[%emt 0:00:30]} 28. Bxa6 {[%emt 0:00:30]} g6 {[%emt 0:00:30]} 29. Bd3 {[%emt 0:00:30]} Nd5 {[%emt 0:00:30]} 30. Kf2 {[%emt 0:00:30]} Kf8 {[%emt 0:00:30]} 31. Be4 {[%emt 0:00:30]} Nf6 {[%emt 0:00:30]} 32. Bb1 {[%emt 0:00:30]} Ke7 {[%emt 0:00:30]} 33. Rd4 {[%emt 0:00:30]} Rc1 {[%emt 0:00:30]} 34. Bd3 {[%emt 0:00:30]} Nd5 {[%emt 0:00:30]} 35. Be4 {[%emt 0:00:30]} Ra1 {[%emt 0:00:30]} 36. Bxd5 {[%emt 0:00:30]} exd5 {[%emt 0:00:30]} 37. Rxb4 {[%emt 0:00:30]} Rxa2 {[%emt 0:00:30]} 38. Ke3 {[%emt 0:00:30]} Ra1 {[%emt 0:00:30]} 39. Rb7+ {[%emt 0:00:30]} Ke6 {[%emt 0:00:30]} 40. Rb6+ {[%emt 0:00:30]} Ke7 {[%emt 0:00:30]} 41. Rb7+ {[%emt 0:00:30]} Ke6 {[%emt 0:00:30]} 42. Kd4 {[%emt 0:00:30]} 1/2-1/2

[Event "Charlotte Open 2020"]
[Site "Charlotte"]
[Date "2020.01.02"]
[Round "2.18"]
[White "Sarkar, Justin"]
[Black "Mahajan, Rushaan"]
[Result "1-0"]
[ECO "B13"]
[WhiteElo "2385"]
[BlackElo "2006"]
[Annotator "ChessBase"]
[PlyCount "71"]
[EventDate "2020.01.02"]
[EventType "swiss"]
[EventCountry "USA"]
[SourceTitle "playchess.com"]
[Source "ChessBase"]
[SourceQuality "1"]
[TimeControl "6000+30"]

1. e4 {[%emt 1:40:30]} c6 {[%emt 1:40:30]} 2. d4 {[%emt 0:00:30]} d5 {[%emt 0:00:30]} 3. exd5 {[%emt 0:00:30]} cxd5 {[%emt 0:00:30]} 4. Bd3 {[%emt 0:00:30]} Nc6 {[%emt 0:00:30]} 5. c3 {[%emt 0:00:30]} Nf6 {[%emt 0:00:30]} 6. h3 {[%emt 0:00:30]} e6 {[%emt 0:00:30]} 7. Bf4 {[%emt 0:00:30]} Bd6 {[%emt 0:00:30]} 8. Bxd6 {[%emt 0:00:30]} Qxd6 {[%emt 0:00:30]} 9. Nf3 {[%emt 0:00:30]} Nh5 {[%emt 0:00:30]} 10. O-O {[%emt 0:00:30]} Nf4 {[%emt 0:00:30]} 11. Re1 {[%emt 0:00:30]} Nxd3 {[%emt 0:00:30]} 12. Qxd3 {[%emt 0:00:30]} f6 {[%emt 0:00:30]} 13. c4 {[%emt 0:00:30]} Nb4 {[%emt 0:00:30]} 14. Qc3 {[%emt 0:00:30]} dxc4 {[%emt 0:00:30]} 15. Qxc4 {[%emt 0:00:30]} O-O {[%emt 0:00:30]} 16. Nbd2 {[%emt 0:00:30]} Nd5 {[%emt 0:00:30]} 17. Ne4 {[%emt 0:00:30]} Qb4 {[%emt 0:00:30]} 18. b3 {[%emt 0:00:30]} Qxc4 {[%emt 0:00:30]} 19. bxc4 {[%emt 0:00:30]} Nf4 {[%emt 0:00:30]} 20. g3 {[%emt 0:00:30]} Nd3 {[%emt 0:00:30]} 21. Re3 {[%emt 0:00:30]} Nb4 {[%emt 0:00:30]} 22. Rb1 {[%emt 0:00:30]} Na6 {[%emt 0:00:30]} 23. c5 {[%emt 0:00:30]} Nc7 {[%emt 0:00:30]} 24. Nd6 {[%emt 0:00:30]} Nd5 {[%emt 0:00:30]} 25. Ra3 {[%emt 0:00:30]} a6 {[%emt 0:00:30]} 26. Nxc8 {[%emt 0:00:30]} Rfxc8 {[%emt 0:00:30]} 27. Rxb7 {[%emt 0:00:30]} Rc6 {[%emt 0:00:30]} 28. Rab3 {[%emt 0:00:30]} Rac8 {[%emt 0:00:30]} 29. Rd7 {[%emt 0:00:30]} R6c7 {[%emt 0:00:30]} 30. Rd6 {[%emt 0:00:30]} Rc6 {[%emt 0:00:30]} 31. Nd2 {[%emt 0:00:30]} Kf8 {[%emt 0:00:30]} 32. Rb7 {[%emt 0:00:30]} Rxd6 {[%emt 0:00:30]} 33. cxd6 {[%emt 0:00:30]} Nc3 {[%emt 0:00:30]} 34. Rc7 {[%emt 0:00:30]} Rd8 {[%emt 0:00:30]} 35. Rxc3 {[%emt 0:00:30]} Rxd6 {[%emt 0:00:30]} 36. Nb3 {[%emt 0:00:30]} 1-0